bitfinex/quotes_BTCUSD_20250224
["timestamp","ask_amount","ask_price","bid_price","bid_amount"]
[1740414404017,0.00012952,95056.0,95055.0,0.007]
[1740414404018,0.00364372,95056.0,95055.0,0.007]
[1740414404227,0.00365761,95056.0,95055.0,0.007]
[1740414404611,0.00365761,95056.0,95050.0,0.157811]
[1740414404819,0.00365761,95056.0,95055.0,0.157803]
[1740414405244,0.00365761,95056.0,95055.0,0.1594982]
[1740414405442,0.00365761,95056.0,95055.0,0.1664982]
[1740414405817,0.00012952,95056.0,95055.0,0.1664982]
[1740414407298,0.00012952,95056.0,95055.0,0.1734982]
[1740414408806,0.00012952,95056.0,95055.0,0.0156952]
[1740414409427,0.00366597,95056.0,95055.0,0.0156952]
[1740414409773,0.16146697,95056.0,95055.0,0.0156952]
[1740414409995,0.31146697,95056.0,95055.0,0.0156952]
[1740414411534,0.31146697,95056.0,95055.0,0.00170986]
[1740414411866,0.32586378,95056.0,95055.0,0.00170986]
[1740414412305,0.31146697,95056.0,95055.0,0.00170986]
[1740414413732,0.31146697,95056.0,95055.0,0.00025459]
[1740414413896,0.15,95055.0,95029.0,0.157846]
[1740414414211,0.15366597,95056.0,95030.0,0.10264569]
[1740414414212,0.15,95043.0,95030.0,0.10264569]
[1740414414360,0.15,95046.0,95030.0,0.10264569]
[1740414414581,0.00353045,95042.0,95037.0,0.157831]
[1740414414774,0.15,95046.0,95038.0,0.10264569]
[1740414414959,0.15,95046.0,95038.0,0.26047569]
[1740414415160,0.00012952,95056.0,95038.0,0.10264569]
[1740414415374,0.001,95043.0,95039.0,0.0804]
[1740414415583,0.001,95043.0,95040.0,0.10264569]
[1740414416683,0.307806,95054.0,95040.0,0.10264569]
[1740414416921,0.001,95046.0,95040.0,0.26047169]
[1740414417335,0.001,95046.0,95040.0,0.10264569]
[1740414417546,0.001,95043.0,95040.0,0.43204569]
[1740414417765,0.001,95043.0,95040.0,0.42504569]
[1740414417978,0.001,95043.0,95040.0,0.43204569]
[1740414418332,0.001,95043.0,95040.0,0.43904569]
[1740414418536,0.001,95046.0,95040.0,0.007]
[1740414418672,0.157821,95044.0,95040.0,0.007]
[1740414419212,0.00354923,95043.0,95040.0,0.007]
[1740414419351,0.00354923,95043.0,95032.0,0.0757]
[1740414419552,0.00354923,95043.0,95033.0,0.10264569]
[1740414419781,0.00454923,95043.0,95040.0,0.007]
[1740414420190,0.157826,95041.0,95040.0,0.007]
[1740414420611,0.00354862,95041.0,95033.0,0.10264569]
[1740414420762,0.00354862,95041.0,95040.0,0.007]
[1740414420963,0.001,95043.0,95040.0,0.007]
[1740414421218,0.0208477,95068.0,95040.0,0.164828]
[1740414421219,0.00353072,95041.0,95040.0,0.164828]
[1740414421377,0.157799,95058.0,95042.0,0.157823]
[1740414421575,0.15,95057.0,95042.0,0.210433]
[1740414421778,0.00354455,95055.0,95040.0,0.007]
[1740414422004,0.15,95053.0,95040.0,0.014]
[1740414422199,0.15,95053.0,95041.0,0.10264569]
[1740414422492,0.00353006,95052.0,95041.0,0.10264569]
[1740414422895,0.00353006,95052.0,95041.0,0.26047169]
[1740414423122,0.001,95043.0,95041.0,0.10264569]
[1740414423322,0.001,95043.0,95042.0,0.157824]
[1740414423521,0.001,95043.0,95042.0,0.38836969]
[1740414424193,0.00097722,95056.0,95055.0,0.157803]
[1740414424321,0.00097722,95056.0,95055.0,0.156803]
[1740414424930,0.00097722,95056.0,95055.0,0.155803]
[1740414425727,0.00197722,95056.0,95055.0,0.007]
[1740414426138,0.00197722,95056.0,95055.0,0.164803]
[1740414426854,0.00197722,95056.0,95055.0,0.171803]
[1740414427606,0.00197722,95056.0,95055.0,0.014]
[1740414427977,0.00197722,95056.0,95055.0,0.171803]
[1740414428407,0.00197722,95056.0,95055.0,0.27444869]
[1740414428598,0.00197722,95056.0,95055.0,0.72324869]
[1740414429414,0.00197722,95056.0,95055.0,0.71624869]
[1740414429620,0.00197722,95056.0,95055.0,0.72324869]
[1740414430045,0.00097722,95056.0,95055.0,0.71624869]
[1740414430460,0.00097722,95056.0,95055.0,0.4628]
[1740414430674,0.00097722,95056.0,95055.0,0.3364]
[1740414431329,0.00097722,95056.0,95055.0,0.59684869]
[1740414431534,0.00097722,95056.0,95055.0,0.58984869]
[1740414431751,0.00097722,95056.0,95055.0,0.59684869]
[1740414432104,0.00097722,95056.0,95055.0,0.71854869]
[1740414433112,0.00097722,95056.0,95055.0,0.71154869]
[1740414433322,0.00097722,95056.0,95055.0,0.71854869]
[1740414435434,0.00097722,95056.0,95055.0,0.56074569]
[1740414435637,0.00097722,95056.0,95055.0,0.43904569]
[1740414436407,0.00097722,95056.0,95055.0,0.66924869]
[1740414436605,0.00097722,95056.0,95055.0,0.66224869]
[1740414436807,0.00097722,95056.0,95055.0,0.71424869]
[1740414437727,0.00097722,95056.0,95055.0,0.72124869]
[1740414438495,0.00097722,95056.0,95055.0,0.56344569]
[1740414440779,0.00097722,95056.0,95055.0,0.43904569]
[1740414441780,0.00097722,95056.0,95055.0,0.44074509]
[1740414442203,0.00097722,95056.0,95055.0,0.3380994]
[1740414442204,0.15877822,95056.0,95055.0,0.3380994]
[1740414442407,0.30877822,95056.0,95055.0,0.0156994]
[1740414443190,0.30877822,95056.0,95055.0,0.0086994]
[1740414443389,0.40277444,95056.0,95055.0,0.0086994]
[1740414443592,0.30877822,95056.0,95055.0,0.0086994]
[1740414444368,0.15,95057.0,95055.0,0.0146994]
[1740414444493,0.157801,95056.0,95055.0,0.0146994]
[1740414444894,0.157801,95056.0,95055.0,0.0076994]
[1740414445208,0.157801,95056.0,95055.0,0.0126994]
[1740414445409,0.157801,95056.0,95055.0,0.0016994]
[1740414445410,0.38888604,95056.0,95055.0,0.0016994]
[1740414445735,0.38888604,95056.0,95040.0,0.0016956]
[1740414445736,0.157826,95041.0,95040.0,0.0016956]
[1740414445928,0.157826,95041.0,95040.0,0.00182512]
[1740414446515,0.307826,95041.0,95040.0,0.00182512]
[1740414447130,0.38237031,95041.0,95040.0,0.00182512]
[1740414447644,0.38237031,95041.0,95040.0,0.00882512]
[1740414448203,0.307826,95041.0,95040.0,0.00882512]
[1740414448758,0.307826,95041.0,95040.0,0.01582512]
[1740414450474,0.3158584,95041.0,95040.0,0.01582512]
[1740414452675,0.41850409,95041.0,95040.0,0.01582512]
[1740414452830,0.157854,95024.0,95023.0,0.0016954]
[1740414453646,0.307854,95024.0,95023.0,0.0016954]
[1740414453859,0.34364628,95024.0,95023.0,0.0016954]
[1740414454468,0.44629197,95024.0,95023.0,0.0016954]
[1740414455477,0.44729197,95024.0,95023.0,0.0086954]
[1740414455698,0.50533887,95024.0,95023.0,0.0086954]
[1740414455998,0.44629197,95024.0,95023.0,0.0066954]
[1740414456399,0.44629197,95024.0,95023.0,0.0016954]
[1740414456614,0.44629197,95024.0,95023.0,0.0056954]
[1740414456835,0.44629197,95024.0,95023.0,0.0096954]
[1740414457157,0.44629197,95024.0,95023.0,0.0056954]
[1740414457332,0.44629197,95024.0,95023.0,0.0016954]
[1740414458318,0.44629197,95024.0,95023.0,0.0056954]
[1740414458507,0.44629197,95024.0,95023.0,0.0066954]
[1740414458910,0.44629197,95024.0,95023.0,0.0106954]
[1740414459139,0.44629197,95024.0,95023.0,0.0056954]
[1740414459379,0.44629197,95024.0,95023.0,0.0096954]
[1740414461150,0.34364628,95024.0,95023.0,0.0096954]
[1740414461575,0.34364628,95024.0,95023.0,0.0056954]
[1740414461780,0.34364628,95024.0,95023.0,0.0046954]
[1740414461927,0.34364628,95024.0,95023.0,0.0056954]
[1740414462633,0.34364628,95024.0,95023.0,0.0106954]
[1740414462842,0.18579228,95024.0,95023.0,0.0106954]
[1740414463044,0.00780663,95043.0,95023.0,0.0106954]
[1740414463403,0.15,95041.0,95024.0,0.10264569]
[1740414463609,0.0361689,95043.0,95036.0,0.210445]
[1740414463814,0.0361689,95043.0,95042.0,0.157824]
[1740414463991,0.0008497,95056.0,95041.0,0.08]
[1740414464346,0.03594299,95052.0,95025.0,0.08]
[1740414464693,0.02055837,95056.0,95026.0,0.26049669]
[1740414464904,0.157839,95034.0,95027.0,0.157849]
[1740414465189,0.157836,95035.0,95028.0,0.157847]
[1740414465426,0.210404,95055.0,95027.0,0.10264569]
[1740414465427,0.0053851,95106.0,95027.0,0.10264569]
[1740414465628,0.03610674,95052.0,95027.0,0.10264569]
[1740414465806,0.15,95055.0,95027.0,0.10264569]
[1740414465807,0.157834,95037.0,95029.0,0.157846]
[1740414466045,0.15,95055.0,95027.0,0.10264569]
[1740414466266,0.001,95034.0,95033.0,0.157839]
[1740414466473,0.0008498,95041.0,95033.0,0.10264569]
[1740414466917,0.0008498,95041.0,95027.0,0.003]
[1740414467120,0.0008498,95041.0,95029.0,0.007]
[1740414467360,0.157843,95032.0,95029.0,0.007]
[1740414467568,0.0008498,95041.0,95029.0,0.007]
[1740414467984,0.157835,95036.0,95029.0,0.007]
[1740414468186,0.0008498,95041.0,95029.0,0.007]
[1740414468567,0.210439,95039.0,95029.0,0.007]
[1740414468772,0.210439,95039.0,95027.0,0.10264569]
[1740414468973,0.0008498,95041.0,95029.0,0.007]
[1740414469174,0.0008498,95041.0,95033.0,0.007]
[1740414469399,0.157832,95038.0,95033.0,0.007]
[1740414469583,0.1586768,95041.0,95033.0,0.007]
[1740414469758,0.1586768,95041.0,95031.0,0.157841]
[1740414469964,0.0008498,95041.0,95032.0,0.10264569]
[1740414470133,0.0008498,95041.0,95036.0,0.157834]
[1740414470349,0.0008498,95041.0,95033.0,0.0774]
[1740414470672,0.0008498,95041.0,95033.0,0.33788469]
[1740414470832,0.0008498,95041.0,95033.0,0.18004569]
[1740414471033,0.0008498,95041.0,95034.0,0.157838]
[1740414471241,0.0008498,95041.0,95033.0,0.18004569]
[1740414471563,0.0008498,95041.0,95033.0,0.18704569]
[1740414471775,0.001,95038.0,95033.0,0.18704569]
[1740414471972,0.0008498,95041.0,95023.0,0.0016954]
[1740414472224,0.157854,95024.0,95023.0,0.0016954]
[1740414472733,0.15,95038.0,95023.0,0.0016954]
[1740414472961,0.03028498,95037.0,95023.0,0.0016954]
[1740414473208,0.15,95039.0,95023.0,0.0016954]
[1740414473410,0.15,95039.0,95024.0,0.075]
[1740414473616,0.0008498,95041.0,95025.0,0.0497]
[1740414473829,0.157839,95033.0,95025.0,0.0497]
[1740414474231,0.15,95034.0,95025.0,0.0497]
[1740414474434,0.307838,95034.0,95025.0,0.0497]
[1740414475056,0.15,95034.0,95025.0,0.0497]
[1740414475217,0.15,95035.0,95025.0,0.0497]
[1740414475622,0.001,95034.0,95025.0,0.0567]
[1740414475825,0.157842,95032.0,95025.0,0.0567]
[1740414476093,0.001,95034.0,95025.0,0.0567]
[1740414476225,0.157842,95032.0,95025.0,0.0637]
[1740414476627,0.157842,95032.0,95025.0,0.0567]
[1740414477021,0.001,95034.0,95025.0,0.0637]
[1740414477225,0.157841,95033.0,95025.0,0.0637]
[1740414477470,0.210455,95032.0,95025.0,0.0637]
[1740414477771,0.157851,95026.0,95025.0,0.0583996]
[1740414477974,0.157851,95026.0,95025.0,0.0653996]
[1740414478174,0.157851,95026.0,95025.0,0.0583996]
[1740414478550,0.157851,95026.0,95025.0,0.0653996]
[1740414479012,0.03652886,95026.0,95025.0,0.0583996]
[1740414479297,0.210466,95028.0,95025.0,0.0653996]
[1740414479509,0.15,95039.0,95025.0,0.0583996]
[1740414479726,0.001,95026.0,95025.0,0.0653996]
[1740414480097,0.001,95026.0,95025.0,0.0583996]
[1740414480520,0.001,95026.0,95025.0,0.40169829]
[1740414480694,0.157807,95053.0,95026.0,0.0828]
[1740414480890,0.01454085,95067.0,95036.0,0.0828]
[1740414481157,0.157833,95037.0,95036.0,0.0828]
[1740414481291,0.157838,95034.0,95028.0,0.0793]
[1740414481695,0.210429,95044.0,95028.0,0.0793]
[1740414481881,0.03713271,95053.0,95028.0,0.0793]
[1740414482291,0.210413,95051.0,95028.0,0.0793]
[1740414482470,0.157846,95029.0,95028.0,0.0793]
[1740414482672,0.19424755,95029.0,95028.0,0.0863]
[1740414482891,0.19424755,95029.0,95028.0,0.0793]
[1740414483036,0.157848,95028.0,95027.0,0.3224]
[1740414484543,0.157851,95026.0,95025.0,0.00177678]
[1740414485998,0.157851,95026.0,95025.0,0.00677678]
[1740414486203,0.157851,95026.0,95025.0,0.01277678]
[1740414486835,0.03598028,95029.0,95025.0,0.01277678]
[1740414487042,0.03598028,95029.0,95026.0,0.1279]
[1740414487252,0.210422,95047.0,95026.0,0.1279]
[1740414487454,0.157838,95035.0,95026.0,0.1279]
[1740414487634,0.157834,95036.0,95026.0,0.1279]
[1740414487974,0.03582748,95038.0,95026.0,0.1279]
[1740414488341,0.157831,95038.0,95026.0,0.1279]
[1740414488563,0.210382,95065.0,95033.0,0.210451]
[1740414488747,0.10264569,95067.0,95034.0,0.10264569]
[1740414488932,0.03612216,95065.0,95034.0,0.10264569]
[1740414489132,0.02,95075.0,95039.0,0.123142]
[1740414489337,0.02,95075.0,95040.0,0.10264569]
[1740414489515,0.210377,95067.0,95040.0,0.10264569]
[1740414489718,0.15,95063.0,95041.0,0.40678062]
[1740414489966,0.0008477,95068.0,95043.0,0.210428]
[1740414490155,0.0008477,95068.0,95044.0,0.42504569]
[1740414490156,0.03642048,95065.0,95044.0,0.42504569]
[1740414490359,0.0008477,95068.0,95051.0,0.08438062]
[1740414490674,0.0008477,95068.0,95055.0,0.157802]
[1740414490675,0.15,95067.0,95055.0,0.157802]
[1740414490880,0.0374905,95068.0,95056.0,0.10264569]
[1740414491203,0.0374905,95068.0,95061.0,0.08438062]
[1740414491204,0.0008477,95068.0,95061.0,0.08438062]
[1740414491333,0.0008477,95068.0,95066.0,0.157783]
[1740414491538,0.0008477,95068.0,95065.0,0.157786]
[1740414491783,0.0008477,95068.0,95067.0,0.157783]
[1740414491961,0.0008477,95068.0,95067.0,0.10264569]
[1740414492169,0.0008477,95068.0,95067.0,0.70632869]
[1740414492373,0.0008477,95068.0,95067.0,0.4459]
[1740414493618,0.0008477,95068.0,95067.0,0.4529]
[1740414494025,0.0008477,95068.0,95067.0,0.4459]
[1740414494200,0.0008477,95068.0,95067.0,0.4529]
[1740414494418,0.1586287,95068.0,95067.0,0.4529]
[1740414494944,0.0008477,95068.0,95067.0,0.4529]
[1740414495170,0.1586287,95068.0,95067.0,0.4529]
[1740414495370,0.1586287,95068.0,95067.0,0.4599]
[1740414495924,0.1586287,95068.0,95067.0,0.3364]
[1740414497128,0.1586287,95068.0,95067.0,0.014]
[1740414497307,0.3086287,95068.0,95067.0,0.014]
[1740414499095,0.3086287,95068.0,95067.0,0.007]
[1740414499507,0.3086287,95068.0,95067.0,0.014]
[1740414500099,0.3086287,95068.0,95067.0,0.007]
[1740414500490,0.3086287,95068.0,95067.0,0.004]
[1740414500690,0.157811,95050.0,95048.0,0.0786]
[1740414500893,0.15,95067.0,95048.0,0.0786]
[1740414501088,0.15,95067.0,95043.0,0.048]
[1740414501089,0.0008477,95068.0,95050.0,0.0828]
[1740414501287,0.15779,95063.0,95052.0,0.128]
[1740414501589,0.15,95062.0,95053.0,0.10264569]
[1740414502001,0.15,95062.0,95053.0,0.26045169]
[1740414502270,0.15,95062.0,95053.0,0.10264569]
[1740414502417,0.15,95067.0,95055.0,0.157803]
[1740414502617,0.15,95067.0,95056.0,0.10264569]
[1740414502821,0.15,95067.0,95056.0,0.42504569]
[1740414503218,0.15,95065.0,95056.0,0.42504569]
[1740414503457,0.0008477,95068.0,95056.0,0.42504569]
[1740414503458,0.0008477,95068.0,95057.0,0.0828]
[1740414503653,0.0008477,95068.0,95058.0,0.10264569]
[1740414503863,0.0008477,95068.0,95060.0,0.157794]
[1740414504038,0.0008477,95068.0,95061.0,0.10264569]
[1740414504228,0.0008477,95068.0,95062.0,0.157791]
[1740414504439,0.0008477,95068.0,95062.0,0.10264569]
[1740414504644,0.0008477,95068.0,95057.0,0.0828]
[1740414504841,0.210377,95067.0,95057.0,0.0828]
[1740414505053,0.0008477,95068.0,95057.0,0.0828]
[1740414505357,0.15779,95063.0,95057.0,0.0828]
[1740414505562,0.157798,95058.0,95057.0,0.0828]
[1740414506294,0.157798,95058.0,95057.0,0.0878]
[1740414506295,0.307798,95058.0,95057.0,0.0878]
[1740414506502,0.307798,95058.0,95057.0,0.005]
[1740414506692,0.1578,95057.0,95056.0,0.3224]
[1740414506902,0.1578,95057.0,95049.0,0.0777]
[1740414506903,0.307806,95053.0,95049.0,0.0777]
[1740414507107,0.157824,95043.0,95041.0,0.0789]
[1740414507309,0.15,95069.0,95042.0,0.10264569]
[1740414507597,0.157816,95048.0,95042.0,0.10264569]
[1740414507777,0.15,95047.0,95042.0,0.10264569]
[1740414508015,0.15,95047.0,95041.0,0.0789]
[1740414508016,0.157824,95042.0,95041.0,0.0789]
[1740414508219,0.307824,95042.0,95041.0,0.0789]
[1740414508403,0.307824,95042.0,95041.0,0.0859]
[1740414508609,0.307824,95042.0,95041.0,0.0789]
[1740414508920,0.210426,95045.0,95039.0,0.0016996]
[1740414508921,0.307828,95040.0,95039.0,0.0016996]
[1740414509710,0.15,95040.0,95039.0,0.0016996]
[1740414509864,0.307828,95040.0,95039.0,0.0016996]
[1740414510068,0.15,95040.0,95039.0,0.0016996]
[1740414510274,0.15,95040.0,95039.0,0.0086996]
[1740414510870,0.15,95040.0,95039.0,0.0156996]
[1740414511066,0.15,95040.0,95039.0,0.0086996]
[1740414511516,0.210357,95077.0,95040.0,0.0811]
[1740414511709,0.02,95078.0,95041.0,0.42504569]
[1740414511946,0.210396,95059.0,95041.0,0.42504569]
[1740414512152,0.157812,95050.0,95041.0,0.42504569]
[1740414512984,0.157814,95049.0,95041.0,0.42504569]
[1740414513159,0.15,95058.0,95041.0,0.42504569]
[1740414513366,0.157809,95052.0,95041.0,0.43204569]
[1740414513565,0.15781,95051.0,95041.0,0.43204569]
[1740414513974,0.210386,95064.0,95041.0,0.43204569]
[1740414513975,0.15,95063.0,95041.0,0.43204569]
[1740414514174,0.03160181,95068.0,95045.0,0.210426]
[1740414514449,0.157811,95051.0,95046.0,0.10264569]
[1740414514688,0.15,95052.0,95046.0,0.10264569]
[1740414514889,0.15,95052.0,95047.0,0.3224]
[1740414515115,0.157812,95050.0,95048.0,0.10264569]
[1740414515301,0.157814,95048.0,95047.0,0.3224]
[1740414516019,0.307814,95048.0,95047.0,0.3224]
[1740414516519,0.307814,95048.0,95047.0,0.3294]
[1740414517110,0.307814,95048.0,95047.0,0.3364]
[1740414517309,0.15,95048.0,95047.0,0.3364]
[1740414517862,0.15,95048.0,95047.0,0.3224]
[1740414517992,0.15,95048.0,95047.0,0.3294]
[1740414518193,0.02,95085.0,95047.0,0.43204569]
[1740414518403,0.24197881,95068.0,95049.0,0.1256]
[1740414518624,0.15,95063.0,95050.0,0.10264569]
[1740414519036,0.15,95061.0,95050.0,0.26045669]
[1740414519247,0.15,95061.0,95050.0,0.10264569]
[1740414519485,0.15,95061.0,95057.0,0.1578]
[1740414519650,0.15,95061.0,95051.0,0.210413]
[1740414519878,0.24197881,95068.0,95049.0,0.1276]
[1740414519879,0.03160181,95068.0,95065.0,0.157786]
[1740414520080,0.03160181,95068.0,95064.0,0.157786]
[1740414520397,0.03160181,95068.0,95065.0,0.157786]
[1740414520808,0.03160181,95068.0,95067.0,0.34480931]
[1740414520809,0.0008477,95068.0,95067.0,0.34480931]
[1740414521015,0.000262,95100.0,95070.0,0.0461]
[1740414521221,0.000262,95100.0,95067.0,0.50942631]
[1740414521222,0.15842295,95100.0,95080.0,0.124]
[1740414521431,0.03245282,95100.0,95081.0,0.10264569]
[1740414521659,0.03245282,95100.0,95083.0,0.210341]
[1740414521867,0.19018082,95100.0,95084.0,0.10264569]
[1740414522070,0.03245282,95100.0,95085.0,0.210338]
[1740414522272,0.03245282,95100.0,95096.0,0.157734]
[1740414522682,0.03245282,95100.0,95089.0,0.210329]
[1740414522900,0.03245282,95100.0,95090.0,0.10264569]
[1740414523139,0.03245282,95100.0,95092.0,0.210321]
[1740414523340,0.03245282,95100.0,95094.0,0.210316]
[1740414523605,0.03245282,95100.0,95098.0,0.157731]
[1740414523809,0.03245282,95100.0,95093.0,0.0832]
[1740414524025,0.19018182,95100.0,95094.0,0.157738]
[1740414524240,0.03245282,95100.0,95093.0,0.0832]
[1740414524641,0.157734,95097.0,95094.0,0.007]
[1740414525002,0.24275882,95100.0,95094.0,0.007]
[1740414525201,0.157732,95098.0,95094.0,0.007]
[1740414525407,7.721e-05,95098.0,95094.0,0.007]
[1740414525789,0.157736,95095.0,95094.0,0.014]
[1740414525987,0.157736,95095.0,95094.0,0.007]
[1740414526419,0.157748,95088.0,95087.0,0.3224]
[1740414526741,0.157748,95088.0,95083.0,0.0763]
[1740414526742,0.157755,95084.0,95083.0,0.0763]
[1740414527179,0.157748,95088.0,95083.0,0.0763]
[1740414527383,0.307738,95094.0,95093.0,0.007]
[1740414527588,0.157751,95087.0,95083.0,0.0763]
[1740414527922,0.157755,95084.0,95083.0,0.0833]
[1740414528630,0.307755,95084.0,95083.0,0.014]
[1740414528838,0.307755,95084.0,95083.0,0.007]
[1740414529111,0.307755,95084.0,95076.0,0.0761]
[1740414529112,0.157764,95079.0,95076.0,0.0761]
[1740414529417,0.210348,95081.0,95076.0,0.0761]
[1740414529649,0.157765,95078.0,95076.0,0.0761]
[1740414529979,0.15,95081.0,95076.0,0.0761]
[1740414530384,0.157766,95077.0,95076.0,0.0761]
[1740414531056,0.157768,95076.0,95075.0,0.3224]
[1740414531470,0.15,95075.0,95069.0,0.049]
[1740414531682,0.15,95073.0,95069.0,0.049]
[1740414531883,0.307778,95070.0,95069.0,0.049]
[1740414532085,0.307778,95070.0,95060.0,0.0781]
[1740414532086,0.157793,95062.0,95060.0,0.0781]
[1740414532304,0.157793,95062.0,95056.0,0.0474]
[1740414532305,0.157794,95061.0,95056.0,0.0474]
[1740414532505,0.309768,95076.0,95075.0,0.007]
[1740414533471,0.30889743,95076.0,95075.0,0.007]
[1740414533867,0.30889743,95076.0,95075.0,0.006]
[1740414534179,0.157778,95070.0,95069.0,0.007]
[1740414534620,0.00012943,95076.0,95060.0,0.007]
[1740414534823,0.00012943,95076.0,95075.0,0.002]
[1740414535372,0.001,95070.0,95069.0,0.006]
[1740414535594,0.001,95070.0,95069.0,0.51714569]
[1740414535831,0.00012943,95076.0,95069.0,0.55684569]
[1740414536023,0.00112943,95076.0,95075.0,0.007]
[1740414536230,0.00112943,95076.0,95075.0,0.10964569]
[1740414537077,0.00212943,95076.0,95075.0,0.11564569]
[1740414537298,0.00012943,95076.0,95075.0,0.10264569]
[1740414537614,0.00112943,95076.0,95075.0,0.10864569]
[1740414538239,0.00212943,95076.0,95075.0,0.11564569]
[1740414539307,0.15989743,95076.0,95075.0,0.014]
[1740414539952,0.30989743,95076.0,95075.0,0.014]
[1740414540563,0.31778625,95076.0,95075.0,0.014]
[1740414540925,0.15,95075.0,95060.0,0.0016984]
[1740414541128,0.157793,95061.0,95060.0,0.0016984]
[1740414542219,0.157793,95061.0,95060.0,0.0086984]
[1740414542597,0.210379,95067.0,95060.0,0.0086984]
[1740414542598,0.15,95071.0,95060.0,0.0086984]
[1740414542821,0.15778,95069.0,95060.0,0.0086984]
[1740414543015,0.001,95075.0,95060.0,0.0086984]
[1740414543216,0.157793,95061.0,95060.0,0.0086984]
[1740414543485,0.1901116,95061.0,95060.0,0.0086984]
[1740414543660,0.1901116,95061.0,95060.0,0.0156984]
[1740414543970,0.1901116,95061.0,95060.0,0.0086984]
[1740414543971,0.3411116,95061.0,95060.0,0.0086984]
[1740414544183,0.41730006,95061.0,95060.0,0.0156984]
[1740414544323,0.41630006,95061.0,95060.0,0.0086984]
[1740414544516,0.41630006,95061.0,95060.0,0.0156984]
[1740414544729,0.41630006,95061.0,95060.0,0.0086984]
[1740414545107,0.41730006,95061.0,95060.0,0.0086984]
[1740414545226,0.41830006,95061.0,95060.0,0.0156984]
[1740414545856,0.3421116,95061.0,95060.0,0.0156984]
[1740414546605,0.3421116,95061.0,95060.0,0.0086984]
[1740414546606,0.3411116,95061.0,95060.0,0.0086984]
[1740414546801,0.3401116,95061.0,95060.0,0.0086984]
[1740414547034,0.3401116,95061.0,95060.0,0.0156984]
[1740414547184,0.3411116,95061.0,95060.0,0.0156984]
[1740414547382,0.3401116,95061.0,95060.0,0.0086984]
[1740414547581,0.3411116,95061.0,95060.0,0.0156984]
[1740414547783,0.3311516,95061.0,95060.0,0.0156984]
[1740414549191,0.42738186,95061.0,95060.0,0.0156984]
[1740414550447,0.3311516,95061.0,95060.0,0.0156984]
[1740414553692,0.43379729,95061.0,95060.0,0.0156984]
[1740414553888,0.44833814,95061.0,95060.0,0.0156984]
[1740414554295,0.30050514,95061.0,95060.0,0.0156984]
[1740414554502,0.27697954,95061.0,95060.0,0.0156984]
[1740414554806,0.36679259,95061.0,95060.0,0.0086984]
[1740414554983,0.36579259,95061.0,95060.0,0.0016984]
[1740414555418,0.39623522,95061.0,95060.0,0.0016984]
[1740414555804,0.30542217,95061.0,95060.0,0.0026984]
[1740414556670,0.45542217,95061.0,95060.0,0.0026984]
[1740414558166,0.45542217,95061.0,95060.0,0.0036984]
[1740414564814,0.45542217,95061.0,95060.0,4e-07]
[1740414565637,0.45542217,95061.0,95060.0,0.0016996]
[1740414566033,0.55891746,95061.0,95060.0,0.0016992]
[1740414566242,0.57891746,95061.0,95060.0,2e-07]
[1740414566450,0.307846,95029.0,95023.0,0.0016954]
[1740414566654,0.41049169,95029.0,95023.0,0.0016954]
[1740414567882,0.41049169,95029.0,95028.0,0.00613115]
[1740414568106,0.43045226,95029.0,95028.0,0.00613115]
[1740414568304,0.41049169,95029.0,95028.0,0.00613115]
[1740414568644,0.42503254,95029.0,95028.0,0.00613115]
[1740414568981,0.307846,95029.0,95028.0,0.00813115]
[1740414569204,0.307846,95029.0,95028.0,0.08283115]
[1740414569399,0.307846,95029.0,95028.0,0.07883115]
[1740414569713,0.307846,95029.0,95028.0,0.08183115]
[1740414570339,0.307846,95029.0,95028.0,0.07883115]
[1740414570538,0.307846,95029.0,95028.0,0.08583115]
[1740414570767,0.157846,95029.0,95028.0,0.08283115]
[1740414571174,0.157846,95029.0,95028.0,0.08583115]
[1740414571676,0.210457,95031.0,95028.0,0.08583115]
[1740414571832,0.210457,95031.0,95029.0,0.08438062]
[1740414572030,0.157844,95030.0,95029.0,0.08438062]
[1740414572414,0.360437,95041.0,95029.0,0.08438062]
[1740414572415,0.00798144,95047.0,95029.0,0.08438062]
[1740414572630,0.2104,95057.0,95031.0,0.0831]
[1740414572834,0.15,95055.0,95031.0,0.0831]
[1740414573035,0.157836,95035.0,95031.0,0.0821]
[1740414573262,0.157835,95036.0,95031.0,0.0821]
[1740414574081,0.157833,95037.0,95031.0,0.0821]
[1740414574287,0.157835,95036.0,95031.0,0.0851]
[1740414574495,0.157835,95036.0,95031.0,0.0821]
[1740414574646,0.157834,95037.0,95031.0,0.0821]
[1740414574847,0.21044,95039.0,95031.0,0.0851]
[1740414575244,0.00789996,95050.0,95031.0,0.0851]
[1740414575456,0.157841,95032.0,95031.0,0.0891]
[1740414575905,0.157841,95032.0,95031.0,0.0851]
[1740414576289,0.210401,95057.0,95031.0,0.0881]
[1740414576492,0.157841,95032.0,95031.0,0.0851]
[1740414576689,0.15,95051.0,95033.0,0.0807]
[1740414576890,0.210395,95060.0,95044.0,0.0807]
[1740414576891,0.15,95059.0,95044.0,0.0807]
[1740414577148,0.157817,95047.0,95044.0,0.0807]
[1740414577367,0.15,95049.0,95045.0,0.0497]
[1740414577905,0.00797513,95063.0,95045.0,0.0497]
[1740414578109,0.02496534,95060.0,95045.0,0.0497]
[1740414578309,0.00797513,95063.0,95045.0,0.0497]
[1740414578533,0.157817,95047.0,95045.0,0.0527]
[1740414579087,0.002,95051.0,95045.0,0.0527]
[1740414579308,0.0008499,95057.0,95045.0,0.0527]
[1740414579309,0.157809,95052.0,95045.0,0.0527]
[1740414579544,0.0008499,95057.0,95046.0,0.10264569]
[1740414579779,0.157818,95046.0,95045.0,0.005]
[1740414580193,0.157831,95038.0,95037.0,0.0819]
[1740414581599,0.157831,95038.0,95037.0,0.0889]
[1740414583310,0.157831,95038.0,95037.0,0.0959]
[1740414584781,0.3867442,95038.0,95037.0,0.014]
[1740414584973,0.307831,95038.0,95037.0,0.014]
[1740414585204,0.41047669,95038.0,95037.0,0.014]
[1740414585723,0.26047669,95038.0,95037.0,0.014]
[1740414585928,0.157843,95031.0,95028.0,0.08063115]